Workbook

Sheet NSU
B1: Marita Karhunen | E1: 25.2.1958 Riihimäki | P1: Nimetty Pesäpallon kunniagalleriaan 9.7.2022
B2: SUPERPESIS | E2: Runkosarja | I2: Kärkilyönnit (KL), pesänvälit | Q2: Runkosarja | U2: Ylempi loppusarja | AB2: Ylempi loppusarja | AG2: Play off, voitot, voittoprosentti | AL2: Arvo-ottelut ja mitalit
B3: Vuosi | C3: Sija | D3: Seura | E3: OTT | F3: KUN | G3: LÖI | H3: TOI | I3: KL | J3: 0 > 1 | K3: 1 > 2 | L3: 2 > 3 | M3: 3 > k | N3: KL-% | P3: LÖI | Q3: TOI | R3: L+T | S3: KL | U3: OTT | V3: KUN | W3: LÖI | X3: TOI | Y3: KL | Z3: KL-% | AB3: LÖI | AC3: TOI | AD3: L+T | AE3: KL | AG3: Puolivälierät | AH3: Välierät | AI3: Pronssi | AJ3: Finaalit | AL3: IL | AM3: LL | AN3: Cup | AO3: K | AP3: H | AQ3: P
B4: 1975 | C4: 11.-12. | D4: RPL | E4: 10 | F4: 1 | G4: 3 | H4: 8
B5: 1976 | C5: 4. | D5: Tahko | E5: 9 | F5: 1 | G5: 9 | H5: 17 | U5: 6 | V5: 0 | W5: 1 | X5: 4 | AL5: 1
B6: 1977 | C6: 4. | D6: Tahko | E6: 10 | F6: 2 | G6: 16 | H6: 19 | U6: 6 | V6: 0 | W6: 1 | X6: 2 | AL6: 1
B7: 1978 | C7: 3. | D7: Tahko | E7: 10 | F7: 6 | G7: 31 | H7: 34 | P7: 6. | Q7: 5. | R7: 3. | U7: 6 | V7: 0 | W7: 9 | X7: 8 | AL7: 1 | AQ7: 1
B8: 1979 | C8: 1. | D8: Tahko | E8: 10 | F8: 2 | G8: 18 | H8: 18 | P8: 3. | Q8: 8. | R8: 2. | U8: 6 | V8: 3 | W8: 13 | X8: 13 | AL8: 1 | AO8: 1
B9: 1980 | C9: 1. | D9: RPL | E9: 9 | F9: 1 | G9: 14 | H9: 13 | U9: 5 | V9: 1 | W9: 3 | X9: 12 | AL9: 1 | AO9: 1
B10: 1981 | C10: 1. | D10: RPL | E10: 18 | F10: 6 | G10: 15 | H10: 34 | I10: 116 | J10: 42 | K10: 27 | L10: 26 | M10: 21 | N10: 76.8 % | O10: =PRODUCT(I10/N10) -> 151 | Q10: 5. | R10: 6. | S10: 2. | T10: =PRODUCT(L10/S10) ->  | AF10: =PRODUCT(#REF!/AE10) ->  | AK10: =PRODUCT(#REF!/AJ10) ->  | AL10: 1 | AO10: 1
B11: 1982 | C11: 4. | D11: RPL | E11: 18 | F11: 2 | G11: 7 | H11: 33 | I11: 100 | J11: 51 | K11: 22 | L11: 18 | M11: 9 | N11: 73.0 % | O11: =PRODUCT(I11/N11) -> 137 | Q11: 10. | S11: 8. | AL11: 1
B12: 1983 | C12: 3. | D12: Manse PP | E12: 18 | F12: 3 | G12: 39 | H12: 18 | I12: 120 | J12: 18 | K12: 20 | L12: 40 | M12: 42 | N12: 68.2 % | O12: =PRODUCT(I12/N12) -> 176 | P12: 3. | R12: 6. | S12: 2. | AL12: 1 | AM12: 1 | AQ12: 1
B13: 1984 | C13: 1. | D13: Manse PP | E13: 18 | F13: 8 | G13: 45 | H13: 37 | I13: 149 | J13: 29 | K13: 19 | L13: 48 | M13: 53 | N13: 76.0 % | O13: =PRODUCT(I13/N13) -> 196 | P13: 1. | Q13: 8. | R13: 1. | S13: 2. | AL13: 1 | AM13: 1 | AO13: 1
B14: 1985 | C14: 3. | D14: Manse PP | E14: 18 | F14: 4 | G14: 38 | H14: 32 | I14: 124 | J14: 14 | K14: 15 | L14: 53 | M14: 42 | N14: 75.2 % | O14: =PRODUCT(I14/N14) -> 165 | P14: 2. | R14: 1. | S14: 2. | AL14: 1 | AM14: 1 | AQ14: 1
B15: 1986 | C15: 8. | D15: Manse PP | E15: 18 | F15: 2 | G15: 29 | H15: 17 | I15: 125 | J15: 17 | K15: 26 | L15: 51 | M15: 31 | N15: ---- | P15: 6. | S15: 2. | AL15: 1 | AM15: 1
B16: 1987 | C16: 6. | D16: Manse PP | E16: 18 | F16: 2 | G16: 27 | H16: 21 | I16: 113 | J16: 20 | K16: 24 | L16: 40 | M16: 29 | N16: ---- | P16: 7. | R16: 8. | S16: 2. | AL16: 1 | AM16: 1
B17: 1988 | C17: 5. | D17: Manse PP | E17: 18 | F17: 1 | G17: 23 | H17: 14 | I17: 100 | J17: 30 | K17: 22 | L17: 24 | M17: 24 | N17: ---- | AM17: 1
B18: 1989 | C18: 4. | D18: Tahko | E18: 18 | F18: 2 | G18: 31 | H18: 20 | I18: 121 | J18: 22 | K18: 24 | L18: 42 | M18: 33 | N18: ---- | P18: 9. | S18: 8. | T18: =PRODUCT(L18/S18) ->  | AH18: 11-27 Kiri | AI18: 11-12 Tarmo
B19: 1990 | C19: 8. | D19: Tahko | E19: 22 | F19: 5 | G19: 25 | H19: 27 | I19: 120 | J19: 30 | K19: 26 | L19: 34 | M19: 30 | N19: 57.8 % | O19: =PRODUCT(I19/N19) -> 207.6124567
B20: 1991 | C20: 9. | D20: Tahko | E20: 22 | F20: 8 | G20: 34 | H20: 23 | I20: 114 | J20: 22 | K20: 22 | L20: 28 | M20: 42 | N20: 60.3 % | O20: =PRODUCT(I20/N20) -> 189.0547264
B21: 1992
B22: 1993 | C22: 10. | D22: Tahko | E22: 23 | F22: 2 | G22: 21 | H22: 9 | I22: 73 | J22: 13 | K22: 23 | L22: 14 | M22: 23 | N22: 56.8 % | O22: =PRODUCT(I22/N22) -> 128.5211268
B23: Yhteensä | E23: =SUM(E4:E22) -> 287 | F23: 58 | G23: 425 | H23: 394 | I23: 1375 | J23: 308 | K23: 270 | L23: 418 | M23: 379 | N23: =PRODUCT(916/O23) -> 67.8 % | O23: =SUM(O10:O22) -> 1350.18831 | P23: 1-1-2 | Q23: 0-0-0 | R23: 2-1-1 | S23: 0-6-0 | U23: =SUM(U4:U22) -> 29 | V23: 4 | W23: 27 | X23: 39 | Y23: 0 | AA23: =SUM(#REF!) ->  | AB23: 0-0-0 | AC23: 0-0-0 | AD23: 0-0-0 | AE23: 0-0-0 | AG23: 0/0 0% | AH23: 0/1 0% | AI23: 0/1 0% | AJ23: 0/0 0% | AL23: 12 | AM23: 6 | AN23: 0 | AO23: 4 | AP23: 0 | AQ23: 3
B24: Pesispörssi | D24: 2041.7
B26: URA SUPERISSA | E26: OTT | F26: KUN | G26: LÖI | H26: TOI | I26: KL | K26: ka/L | L26: ka/T | M26: ka/KL | N26: K - % | P26: ENSIMMÄISET RUNKOSARJASSA
B27: Runkosarja | E27: =PRODUCT(E23) -> 287 | F27: =PRODUCT(F23) -> 58 | G27: =PRODUCT(G23) -> 425 | H27: =PRODUCT(H23) -> 394 | I27: =PRODUCT(I23) -> 1375 | K27: =PRODUCT((F27+G27)/E27) -> 1.68 | L27: =PRODUCT(H27/E27) -> 1.37 | M27: =PRODUCT(I27/229) -> 6.00 | N27: =PRODUCT(N23) -> 67.8 % | O27: =PRODUCT(O23) -> 1350.18831 | P27: Ottelu | R27: 19.05. 1975 RPL - PuMu 1-24 | Y27: 1. ottelu | AB27: 17 v 2 kk 24 pv
B28: Ylempi loppusarja | E28: =PRODUCT(U23) -> 29 | F28: =PRODUCT(V23) -> 4 | G28: =PRODUCT(W23) -> 27 | H28: =PRODUCT(X23) -> 39 | K28: =PRODUCT((F28+G28)/E28) -> 1.07 | L28: =PRODUCT(H28/E28) -> 1.34 | P28: Lyöty | R28: 21.07. 1975 Roihu - RPL 23-8 | Y28: 7. ottelu | AB28: 17 v 4 kk 26 pv
B29: Alempi loppusarja | P29: Tuotu | R29: 15.06. 1975 RPL - LäPa 10-10 | Y29: 6. ottelu | AB29: 17 v 3 kk 21 pv
B30: KAIKKI | E30: =SUM(E27:E29) -> 316 | F30: =SUM(F27:F29) -> 62 | G30: =SUM(G27:G29) -> 452 | H30: =SUM(H27:H29) -> 433 | I30: =SUM(I27:I29) -> 1375 | K30: =PRODUCT((F30+G30)/E30) -> 1.63 | L30: =PRODUCT(H30/E30) -> 1.37 | M30: 6.00 | P30: Kunnari | R30: 27.07. 1975 RPL - UPV 8-31 | Y30: 9. ottelu | AB30: 17 v 5 kk 2 pv
B32: Vuoden pesäpalloilija 1979, 1981, 1983 <> Lyöjäkuningatar 1984 <> Tehopelaaja 1984, 1985
B34: Seurat | D34: RPL = Riihimäen Pallonlyöjät (1924) | J34: Manse PP = Mansen Pesäpallo (1978) | R34: Tahko = Hyvinkään Tahko (1915)

Sheet Arvo-ottelut
B1: ITÄ - LÄNSI - KORTTI
B2: Marita Karhunen | C2: 25.2.1958 Riihimäki
B3: NAISET | C3: Itä - Länsi, tulos | D3: Joukkue | E3: Seura | G3: V | H3: T | I3: H | J3: Up. | K3: Lj. | L3: Palk. | M3: O | N3: K | O3: L | P3: T | Q3: KL | R3: 1 | S3: 2 | T3: 3 | U3: k | V3: KL-% | W3: Pelinjohtaja | X3: Yleisöä
B4: 08.08. 1976 Kannus | C4: 8-3 | D4: Itä | E4: Tahko | G4: 1 | K4: vai | M4: 1 | W4: Olavi Nurmi | X4: 600
B5: 14.08. 1977 Lapua | C5: 5-5 | D5: Itä | E5: Tahko | H5: 1 | J5: 2p | K5: 3 | M5: 1 | P5: 1 | W5: Erkki Leppäniemi | X5: 767
B6: 29.07. 1978 Ulvila | C6: 7-10 | D6: Itä | E6: Tahko | I6: 1 | J6: 2p | K6: 4 | M6: 1 | P6: 1 | W6: Erkki Leppäniemi | X6: 327
B7: 12.08. 1979 Turku | C7: 8-6 | D7: Itä | E7: Tahko | G7: 1 | J7: 2p | K7: 4 | L7: II p | M7: 1 | O7: 1 | P7: 1 | W7: Matti Vaininen | X7: 206
B8: 20.07. 1980 Lapua | C8: 6-5 | D8: Itä | E8: RPL | G8: 1 | J8: 2p | K8: 5 | L8: II p | M8: 1 | O8: 1 | W8: Jarmo Pöllänen | X8: 500
B9: 08.08. 1981 Lammi | C9: 9-8 | D9: Itä | E9: RPL | G9: 1 | J9: 2p | K9: 1 | L9: A | M9: 1 | O9: 4 | Q9: 12/13 | R9: 3/3 | S9: 3/3 | T9: 2/2 | U9: 4/5 | V9: 92.3 % | W9: Risto Pulliainen | X9: 441
B10: 07.08. 1982 Roihuvuori | C10: 0-10 | D10: Itä | E10: RPL | I10: 1 | J10: 2p | K10: 1 | L10: I p | M10: 1 | Q10: 5/5 | R10: 3/3 | S10: 1/1 | T10: 1/1 | V10: 100.0 % | W10: Ali Lindström | X10: 3000
B11: 20.08. 1983 Tampere | C11: 9-8 | D11: Länsi | E11: Manse PP | I11: 1 | J11: 2p | K11: 4 | L11: I p | M11: 1 | O11: 2 | P11: 1 | Q11: 5/8 | R11: 1/2 | S11: 0/1 | T11: 2/2 | U11: 2/3 | V11: 62.5 % | W11: Matti Vaininen | X11: 620
B12: 18.08. 1984 Meilahti, Helsinki | C12: 7-16 | D12: Itä | E12: Manse PP | I12: 1 | J12: 1v | K12: 2 | L12: I p | M12: 1 | O12: 3 | Q12: 4/7 | R12: 1/2 | S12: 0/2 | T12: 3/3 | V12: 57.1 % | W12: Raimo Riitesuo | X12: 1611
B13: 07.09. 1985 Meilahti, Helsinki | C13: 3-10 | D13: Länsi | E13: Manse PP | G13: 1 | J13: 2p | K13: 4 | L13: II p | M13: 1 | O13: 2 | Q13: 8/10 | R13: 1/1 | S13: 2/2 | T13: 3/4 | U13: 2/3 | V13: 80.0 % | W13: Markku Lähteenmäki | X13: 1300
B14: 24.08. 1986 Stadion, Helsinki | C14: 0-1 | D14: Länsi | E14: Manse PP | G14: 1 | J14: 2p | L14: A, I p | M14: 1 | O14: 1 | W14: Markus Lakaniemi | X14: 8000
B15: 08.08. 1987 Stadion, Helsinki | C15: 3-2 | D15: Länsi | E15: Manse PP | I15: 1 | J15: 3p | K15: 5 | M15: 1 | O15: 1 | Q15: 2/5 | R15: 1/2 | T15: 0/1 | U15: 1/2 | V15: 40.0 % | W15: Markus Lakaniemi | X15: 4870
B16: Yhteensä | G16: =SUM(G4:G15) -> 6 | H16: =SUM(H4:H15) -> 1 | I16: =SUM(I4:I15) -> 5 | M16: =SUM(M4:M15) -> 12 | O16: 15 | P16: 4 | Q16: 36/48 | R16: 10/13 | S16: 6/9 | T16: 11/13 | U16: 9/13 | V16: 75.0 %
B17: Ikä ensimmäisessä ottelussa | C17: 18 v 5 kk 14 pv
B19: LIITTO - LEHDISTÖ - KORTTI
B20: NAISET | C20: Tulos | D20: Joukkue | E20: Seura | G20: V | H20: T | I20: H | J20: Up. | K20: Lj. | L20: Palk. | M20: O | N20: K | O20: L | P20: T | Q20: KL | R20: 1 | S20: 2 | T20: 3 | U20: k | V20: KL-% | W20: Pelinjohtaja | X20: Yleisöä
B21: 03.07. 1983 Pihtipudas | C21: 17-8 | D21: Liitto | E21: Manse PP | G21: 1 | J21: 2p | K21: 5 | L21: II p | M21: 1 | O21: 4 | P21: 1 | Q21: 7/7 | R21: 1/1 | S21: 1/1 | T21: 1/1 | U21: 4/4 | V21: 100.0 % | W21: Matti Vaininen | X21: 378
B22: 01.07. 1984 Tampere | C22: 9-6 | D22: Liitto | E22: Manse PP | G22: 1 | J22: 3p | K22: 6 | L22: I p | M22: 1 | O22: 2 | P22: 1 | Q22: 5/7 | S22: 3/3 | T22: 0/1 | U22: 2/3 | V22: 71.4 % | W22: Ali Lindström | X22: 350
B23: 30.06. 1985 Kankaanpää | C23: 21-8 | D23: Liitto | E23: Manse PP | G23: 1 | J23: 2p | K23: 5 | M23: 1 | O23: 3 | P23: 1 | Q23: 6/7 | R23: 1/1 | S23: 0/1 | T23: 2/2 | U23: 3/3 | V23: 85.7 % | W23: Ali Lindström | X23: 843
B24: 29.06. 1986 Viinijärvi | C24: 4-3 | D24: Liitto | E24: Manse PP | G24: 1 | J24: 2p | K24: 8 | L24: I p | M24: 1 | P24: 1 | Q24: 4/4 | R24: 3/3 | T24: 1/1 | V24: 100.0 % | W24: Markku Lähteenmäki | X24: 880
B25: 28.06. 1987 Joutsa | C25: 5-2 | D25: Liitto | E25: Manse PP | G25: 1 | J25: 3p | K25: 7 | M25: 1 | O25: 2 | Q25: 5/8 | R25: 2/2 | T25: 1/1 | U25: 2/5 | V25: 62.5 % | W25: Kosti Parviainen | X25: 515
B26: 19.06. 1988 Vähäkyrö | C26: 11-1 | D26: Liitto | E26: Manse PP | G26: 1 | J26: 3v | K26: 6 | M26: 1 | Q26: 1/2 | S26: 1/1 | T26: 0/1 | V26: 50.0 % | W26: Kosti Parviainen | X26: 209
B27: Yhteensä | G27: =SUM(G21:G26) -> 6 | M27: =SUM(M21:M26) -> 6 | O27: 11 | P27: 4 | Q27: 28/35 | R27: 7/7 | S27: 5/6 | T27: 5/7 | U27: 11/15 | V27: 80.0 %
B28: Ikä ensimmäisessä ottelussa | C28: 25 v 4 kk 8 pv
